Workbook

Sheet TAB. TAXAS (hidden)
A1: Processo n.º:
A2: Requerente:
A3: Local:
A4: Tipo de Obra:
A5: Aprovação projecto:
E53: TAXA | F53: QUANTIDADE | G53: VALOR
A54: CAPÍTULO I | W54: BASE | X54: 2020 | Y54: 2021 | Z54: 2022 | AA54: 2022
A55: SECRETARIA | X55: 0 | Y55: 0.001 | Z55: 0.018 | AA55: 0.067
A57: 1 - Afixações de editais relativos a pretensões que não sejam de interesse público - cada edital | E57: =AA57 -> 7.08 | G57: =IF(F57=""," ",ROUND(E57*F57,2)) ->  | W57: 6.51 | X57: =IF(W57=0," ",IFERROR(IF(W57>0,ROUND(W57+W57*X$55,2)," "),"")) -> 6.51 | Y57: 6.52 | Z57: 6.64 | AA57: =IF(Z57=0," ",IFERROR(IF(Z57>0,ROUND(Z57+Z57*AA$55,2)," "),"")) -> 7.08
A58: 2 - Autos ou termos de qualquer espécie, não especialmente previstos na presente Tabela | E58: 7.65 | G58: =IF(F58=""," ",ROUND(E58*F58,2)) ->  | W58: 7.03 | X58: 7.03 | Y58: 7.04 | Z58: 7.17 | AA58: 7.65
A59: 3 – Certidões de teor:
A60: 3.1 - Não excedendo uma lauda – cada | E60: 5.79 | W60: 5.32 | X60: 5.32 | Y60: 5.33 | Z60: 5.43 | AA60: 5.79
A61: 3.2 - Por cada lauda além da primeira | E61: 3.21 | W61: 2.96 | X61: 2.96 | Y61: 2.96 | Z61: 3.01 | AA61: 3.21
A62: 4 - Certidões narrativa, cada | E62: 18.63 | W62: 17.13 | X62: 17.13 | Y62: 17.15 | Z62: 17.46 | AA62: 18.63
A63: 4.1 - Por cada folha a mais | E63: 10.93 | W63: 10.05 | X63: 10.05 | Y63: 10.06 | Z63: 10.24 | AA63: 10.93
A64: 5 - Conferência e autenticação de documentos - por cada página | E64: 4.49 | W64: 4.14 | X64: 4.14 | Y64: 4.14 | Z64: 4.21 | AA64: 4.49
A65: 6- Buscas, por processo arquivado/ano | E65: 3.25 | W65: 3 | X65: 3 | Y65: 3 | Z65: 3.05 | AA65: 3.25
A66: 7 - Termos de autenticação e Fotocópias autenticadas de documentos ou processos
A67: a) Termo de autenticação | E67: 18.43 | W67: 16.94 | X67: 16.94 | Y67: 16.96 | Z67: 17.27 | AA67: 18.43
A68: a) Formato A4 - por cada página | E68: 1.93 | W68: 1.78 | X68: 1.78 | Y68: 1.78 | Z68: 1.81 | AA68: 1.93
A69: b) Formato A3 - por cada página | E69: 2.01 | W69: 1.85 | X69: 1.85 | Y69: 1.85 | Z69: 1.88 | AA69: 2.01
A70: c) Formato A2 - por cada página | E70: 3.8 | W70: 3.5 | X70: 3.5 | Y70: 3.5 | Z70: 3.56 | AA70: 3.8
A71: c) Em formato superior a A2 | E71: 7.62 | W71: 7 | X71: 7 | Y71: 7.01 | Z71: 7.14 | AA71: 7.62
A72: 8 - Fotocópias simples de documentos ou processos em arquivo
A73: 8.1 Preto e Branco
A74: a) Formato A4 - por cada página | E74: 0.33 | W74: 0.3 | X74: 0.3 | Y74: 0.3 | Z74: 0.31 | AA74: 0.33
A75: b) Formato A3 - por cada página | E75: 0.39 | W75: 0.36 | X75: 0.36 | Y75: 0.36 | Z75: 0.37 | AA75: 0.39
A76: c) Formato A2 - por cada página | E76: 0.76 | W76: 0.7 | X76: 0.7 | Y76: 0.7 | Z76: 0.71 | AA76: 0.76
A77: c) Em formato superior a A2 | E77: 3.25 | W77: 3 | X77: =IF(W77=0," ",IFERROR(IF(W77>0,ROUND(W77+W77*X$55,2)," "),"")) -> 3 | Y77: 3 | Z77: 3.05 | AA77: 3.25
A78: 8.2 Cores
A79: a) Formato A4 - por cada página | E79: 0.63 | W79: 0.58 | X79: 0.58 | Y79: 0.58 | Z79: 0.59 | AA79: 0.63
A80: b) Formato A3 - por cada página | E80: 0.76 | W80: 0.7 | X80: 0.7 | Y80: 0.7 | Z80: 0.71 | AA80: 0.76
A81: c) Formato A2 - por cada página | E81: 1.53 | W81: 1.4 | X81: 1.4 | Y81: 1.4 | Z81: 1.43 | AA81: 1.53
A82: c) Em formato superior a A2 | E82: 6.53 | W82: 6 | X82: 6 | Y82: 6.01 | Z82: 6.12 | AA82: 6.53
A83: 9 - Rubricas, em livros, processos e documentos, quando legalmente exigidos - cada rubrica | E83: 0.38 | W83: 0.35 | X83: 0.35 | Y83: 0.35 | Z83: 0.36 | AA83: 0.38
A84: 10 - Termos de abertura e encerramento em livros sujeitos a esta formalidade - cada livro | E84: 3.95 | W84: 3.63 | X84: 3.63 | Y84: 3.63 | Z84: 3.7 | AA84: 3.95
A85: 11 - Termos de entrega de documentos juntos a processos, cuja restituição haja sido autorizada – cada | E85: 3.95 | W85: 3.63 | X85: 3.63 | Y85: 3.63 | Z85: 3.7 | AA85: 3.95
A86: 12 - Reapreciação do pedido para emissão de segunda guia de recebimento, por falta de pagamento da guia originária no dia da sua emissão | E86: 19.2 | G86: =IF(F86=""," ",ROUND(E86*F86,2)) ->  | W86: 17.65 | X86: 17.65 | Y86: 17.67 | Z86: 17.99 | AA86: 19.2
A87: 13 - Fornecimento a pedido dos interessados de documentos necessários à substituição dos que tenham sido extraviados ou em mau estado | E87: 9.54 | W87: 8.77 | X87: 8.77 | Y87: 8.78 | Z87: 8.94 | AA87: 9.54
A88: 14 - Outros registos. | E88: 3.79 | W88: 3.49 | X88: 3.49 | Y88: 3.49 | Z88: 3.55 | AA88: 3.79
A89: 15 – Averbamentos não especialmente previstos no código regulamentar | E89: 6.37 | W89: 5.85 | X89: 5.85 | Y89: 5.86 | Z89: 5.97 | AA89: 6.37
A90: 16 - Alvarás não especialmente previstos no código regulamentar | E90: 8.93 | W90: 8.21 | X90: 8.21 | Y90: 8.22 | Z90: 8.37 | AA90: 8.93
A91: 17 - Atestados ou documentos análogos e suas confirmações | E91: 7.65 | W91: 7.03 | X91: 7.03 | Y91: 7.04 | Z91: 7.17 | AA91: 7.65
A92: 18 - Requisição para emprego de substâncias explosivas | E92: 26.78 | W92: 24.64 | X92: 24.64 | Y92: 24.66 | Z92: 25.1 | AA92: 26.78
A93: 19 - Outros serviços ou actos não especialmente previstos nesta tabela ou em legislação especial. | E93: 24.09 | W93: 22.16 | X93: 22.16 | Y93: 22.18 | Z93: 22.58 | AA93: 24.09
A94: 20 - Certidões de dispensa de autorização de utilização e outras relacionadas com operações urbanísticas | E94: 57.6 | W94: 52.98 | X94: 52.98 | Y94: 53.03 | Z94: 53.98 | AA94: 57.6
A95: 21- Pedido de desistência da pretensão | E95: 6.53 | W95: 6 | X95: 6 | Y95: 6.01 | Z95: 6.12 | AA95: 6.53
A96: 22- Pedido de urgência - acresce ao valor previsto 50%
A97: 23- Fornecimento de cópias ou outras reproduções em suporte digital de armazenamento: | X97: =IF(W97=0," ",IFERROR(IF(W97>0,ROUND(W97+W97*X$55,2)," "),"")) -> 
A98: 23.1 CD, custo por unidade | E98: 9.41 | W98: 8.65 | X98: 8.65 | Y98: 8.66 | Z98: 8.82 | AA98: 9.41
A99: 23.2 DVD, custo por unidade | E99: 8.87 | W99: 8.15 | X99: 8.15 | Y99: 8.16 | Z99: 8.31 | AA99: 8.87
A100: 23.3 Outros serviços | E100: 8.55 | W100: 7.86 | X100: 7.86 | Y100: 7.87 | Z100: 8.01 | AA100: 8.55
G101: =IF(F101=""," ",ROUND(E101*F101,2)) -> 
A103: CAPÍTULO II
A104: INSPECÇÕES E VISTORIAS
A106: Seccção I
A107: Inspecção higio-sanitária
E109: 25.63 | W109: 23.58 | X109: 23.58 | Y109: 23.6 | Z109: 24.02 | AA109: 25.63
A110: 1 - Inspecção sanitária a produtos e/ou instalações, por inspecção | E110: 48.73 | W110: 44.82 | X110: 44.82 | Y110: 44.86 | Z110: 45.67 | AA110: 48.73
A111: 2 - Inspecção para identificação de animais
A113: Secção II
A114: Inspecções e Vistorias
A116: 1 - Inspecção de ascensores, monta-cargas, escadas mecânicas e tapetes rolantes:
A117: 1.1 - Inspecção periódica | E117: 89.81 | W117: 82.6 | X117: =IF(W117=0," ",IFERROR(IF(W117>0,ROUND(W117+W117*X$55,2)," "),"")) -> 82.6 | Y117: 82.68 | Z117: 84.17 | AA117: 89.81
A118: 1.2 - Reinspecção periódica | E118: 51.32 | W118: 47.2 | X118: 47.2 | Y118: 47.25 | Z118: 48.1 | AA118: 51.32
A119: 1.3 - Inspecção extraordinária | E119: 89.81 | W119: 82.6 | X119: 82.6 | Y119: 82.68 | Z119: 84.17 | AA119: 89.81
A120: 2 -Vistoria para redução de caução | E120: 67.96 | W120: 62.5 | X120: 62.5 | Y120: 62.56 | Z120: 63.69 | AA120: 67.96
A121: 3 - Vistoria para efeitos de recepção provisória ou definitiva de obras de urbanização | E121: =AA121 -> 34.59 | W121: 31.82 | X121: 31.82 | Y121: 31.85 | Z121: 32.42 | AA121: 34.59
A122: 3.1 - ao montante definido no número anterior acresce 0,5% do valor das obras de urbanização a vistoriar | G122: =IF(F122=""," ",ROUND(E122*F122,2)) -> 
A123: 4 - Vistoria para efeitos de arrendamento e de emissão de licença ou autorização de utilização para habitação e turismo rural, incluindo as de conservação | E123: 65.39 | W123: 60.14 | X123: 60.14 | Y123: 60.2 | Z123: 61.28 | AA123: 65.39
A124: 4.1 - ao montante definido no número anterior acresce por metro quadrado de area de construção, acima dos 200 m2 | E124: 0.38 | W124: 0.35 | X124: 0.35 | Y124: 0.35 | Z124: 0.36 | AA124: 0.38
A125: 5 - Vistorias a estabelecimentos comerciais, serviços, empreendimentos turísticos e estabelecimentos de alojamento local
A126: 5.1 - Pela realização de vistoria inicial ou complementar destinada à concessão de licenças ou autorizações de utilização, ou outras, acrescida do custo de peritos exteriores ao município
A127: a) Para estabelecimento com area de construção até 300 m2 | E127: 80.79 | W127: 74.31 | X127: 74.31 | Y127: 74.38 | Z127: 75.72 | AA127: 80.79
A128: b) Para estabelecimento com area de construção superior a 300 m2 e até 1000 m2 | E128: 106.45 | W128: 97.91 | X128: 97.91 | Y128: 98.01 | Z128: 99.77 | AA128: 106.45
A129: c) Para estabelecimento com area de construção superior a 1000m2 | E129: 157.79 | W129: 145.12 | X129: 145.12 | Y129: 145.27 | Z129: 147.88 | AA129: 157.79
A130: 6 - Vistorias a estabelecimentos industriais, oficinas e armazens, acrescida do custo de peritos exteriores ao município | G130: =IF(F130=""," ",ROUND(E130*F130,2)) -> 
A131: 6.1 - Pela realização de vistoria inicial ou complementar destinada à concessão de licenças ou autorizações de utilização, ou outras que não de exploração, acrescida do custo de peritos exteriores ao município
A132: a) Para estabelecimento com area de construção até 500 m2 | E132: 55.12 | W132: 50.7 | X132: 50.7 | Y132: 50.75 | Z132: 51.66 | AA132: 55.12
A133: b) Para estabelecimento com area de construção superior a 500 m2 e até 1000m2 | E133: 80.79 | W133: 74.31 | X133: 74.31 | Y133: 74.38 | Z133: 75.72 | AA133: 80.79
A134: c) Para estabelecimento com area de construção superior a 1000m2 | E134: 132.13 | W134: 121.52 | X134: 121.52 | Y134: 121.64 | Z134: 123.83 | AA134: 132.13
A135: 7 - Pela realização de vistoria inicial ou complementar destinada à emissão de licença ou autorização de utilização de estabelecimentos de restauração e/ou bebidas, acrescida do custo de peritos exteriores ao município | G135: =IF(F135=""," ",ROUND(E135*F135,2)) -> 
A136: a) Para estabelecimento com area de construção até 300 m2 | E136: 80.79 | G136: =IF(F136=""," ",ROUND(E136*F136,2)) ->  | W136: 74.31 | X136: 74.31 | Y136: 74.38 | Z136: 75.72 | AA136: 80.79
A137: b) Para estabelecimento com area de construção superior a 300 m2 e até 1000 m2 | E137: 106.45 | W137: 97.91 | X137: =IF(W137=0," ",IFERROR(IF(W137>0,ROUND(W137+W137*X$55,2)," "),"")) -> 97.91 | Y137: 98.01 | Z137: 99.77 | AA137: 106.45
A138: c) Para estabelecimento com area de construção superior a 1000m2 | E138: 157.79 | W138: 145.12 | X138: 145.12 | Y138: 145.27 | Z138: 147.88 | AA138: 157.79
A139: 8 - Pela realização de vistoria para efeitos de emissão de licença ou autorização de utilização para restauração e/ou bebidas que disponham ainda de sala ou de espaços destinados a dança, às taxas previstas no número anterior, acrescerá ainda a taxa correspondente à da vistoria para funcionamento dos recintos fixos de diversão, prevista no ponto 20 desta secção
A140: 9 - Autorização extraordinária de prestação de serviços de restauração ou de bebidas com carácter esporádico e/ou ocasional, devidamente remunerada e anunciada junto ao público, em instalações amovíveis ou pré-fabricadas. | E140: 80.79 | W140: 74.31 | X140: 74.31 | Y140: 74.38 | Z140: 75.72 | AA140: 80.79
A141: 10 - Vistoria aos estabelecimentos previstos no regime jurídico sobre a instalação de estabelecimentos de comércio alimentar e certos estabelecimentos de comércio não alimentar e prestação de serviços, actualmente previstos no DL 259/2007, de 17 de Julho
A142: 11 - Vistoria a ginásios (health clubs) | E142: 130.58 | W142: 120.1 | X142: 120.1 | Y142: 120.22 | Z142: 122.38 | AA142: 130.58
A143: 12 - Vistoria a Hotéis e outros estabelecimentos similares | E143: 156.24 | W143: 143.7 | X143: 143.7 | Y143: 143.84 | Z143: 146.43 | AA143: 156.24
A144: 13 - Vistoria a Parques de campismo | E144: 161.59 | W144: 148.61 | X144: 148.61 | Y144: 148.76 | Z144: 151.44 | AA144: 161.59
A145: 14 - Vistoria inicial, final ou periódica relativa ao processo de licenciamento das instalações de armazenamento de produtos de petróleo e de postos de abastecimento de combustíveis
A146: 14.1 - instalações da classe A1 | E146: 176.56 | W146: 162.38 | X146: 162.38 | Y146: 162.54 | Z146: 165.47 | AA146: 176.56
A147: 14.2 - instalações da classe A2 | E147: 202.22 | W147: 185.98 | X147: 185.98 | Y147: 186.17 | Z147: 189.52 | AA147: 202.22
A148: 14.3 - instalações da classe A3 | E148: 227.89 | W148: 209.59 | X148: 209.59 | Y148: 209.8 | Z148: 213.58 | AA148: 227.89
A149: 14.4 - Instalações de classe B2 | E149: 176.56 | W149: 162.38 | X149: 162.38 | Y149: 162.54 | Z149: 165.47 | AA149: 176.56
A150: 14.5 - Outras instalações não expressamente definidas | E150: 240.72 | W150: 221.39 | X150: 221.39 | Y150: 221.61 | Z150: 225.6 | AA150: 240.72
A151: 15 - Repetição de vistoria: 75% do valor da taxa devida pela vistoria correspondente
A152: 16 -Vistorias a estabelecimentos industriais
A153: 16.1 - Vistorias para verificação das condições do exercício da actividade ou do cumprimento das medidas impostas nas decisões proferidas sobre as reclamações e recursos hierárquicos | E153: 109.31 | W153: 100.54 | X153: 100.54 | Y153: 100.64 | Z153: 102.45 | AA153: 109.31
A154: 16.2 - Vistorias para verificação do cumprimento das medidas impostas aquando da desactivação definitiva do estabelecimento industrial | E154: 57.98 | W154: 53.33 | X154: 53.33 | Y154: 53.38 | Z154: 54.34 | AA154: 57.98
A155: 16.3 - Vistoria de controlo para verificação de cumprimento das condições fixadas ou medidas impostas | E155: 63.12 | W155: 58.05 | X155: 58.05 | Y155: 58.11 | Z155: 59.16 | AA155: 63.12
A156: 16.4 - Vistoria em que intervenham entidades da administação central: Acresce 20% do valor da taxa devida pela vistoria correspondente
A157: 17 - Vistoria de segurança em recintos de espectáculos e divertimentos públicos | E157: 93.63 | W157: 86.11 | X157: =IF(W157=0," ",IFERROR(IF(W157>0,ROUND(W157+W157*X$55,2)," "),"")) -> 86.11 | Y157: 86.2 | Z157: 87.75 | AA157: 93.63
A158: 18 - Vistoria para licença de recinto itinerante ou improvisado | E158: 80.79 | W158: 74.31 | X158: 74.31 | Y158: 74.38 | Z158: 75.72 | AA158: 80.79
A159: 19 - Vistoria para licença acidental de recinto para espectáculo de natureza artística | E159: 80.79 | W159: 74.31 | X159: 74.31 | Y159: 74.38 | Z159: 75.72 | AA159: 80.79
A160: 20 - Vistoria para funcionamento dos recintos fixos de diversão | E160: 101.32 | W160: 93.19 | X160: 93.19 | Y160: 93.28 | Z160: 94.96 | AA160: 101.32
A161: 21 - Vistoria de arrrendamento para fins não habitacionais de prédios ou fracções não licenciados | E161: 132.83 | W161: 122.17 | X161: 122.17 | Y161: 122.29 | Z161: 124.49 | AA161: 132.83
A162: a) Acresce o valor da taxa fixada nos números 5.1. ou 6.1 da presente secção, consoante a utilização
A163: 22 - Vistorias para efeitos de propriedade horizontal
A164: 22.1 - Para habitação, por cada | E164: 6.37 | W164: 5.85 | X164: 5.85 | Y164: 5.86 | Z164: 5.97 | AA164: 6.37
A165: 22.2 - Para outros fins, por cada | E165: 8.93 | W165: 8.21 | X165: 8.21 | Y165: 8.22 | Z165: 8.37 | AA165: 8.93
A166: 23 - Vistoria para medição de ruído ( art.º13 º do DL 9/2007, de 17 de Janeiro) | E166: 158.97 | W166: 146.21 | X166: 146.21 | Y166: 146.36 | Z166: 148.99 | AA166: 158.97
A167: 24 - Vistorias a ciclomotores, veículos agrícolas e táxis | E167: 22.07 | W167: 20.29 | X167: 20.29 | Y167: 20.31 | Z167: 20.68 | AA167: 22.07
A168: 25 - Ensaios e Vistorias a que se referem o art.º 84º, a alínea b) no n.º 1 do artigo 92º e o art.º 158º do presente Código Regulamentar | E168: 22.79 | W168: 20.96 | X168: 20.96 | Y168: 20.98 | Z168: 21.36 | AA168: 22.79
A169: 26 - Vistorias a viaturas de transporte e venda de pão | E169: 132.92 | W169: 122.25 | X169: 122.25 | Y169: 122.37 | Z169: 124.57 | AA169: 132.92
A170: 27 - Acresce a todas as vistorias em que seja obrigatória a presença do veterinário municipal | E170: 29.47 | W170: 27.1 | X170: 27.1 | Y170: 27.13 | Z170: 27.62 | AA170: 29.47
A171: 28 - Outras vistorias não previstas nos números anteriores | E171: 66.11 | W171: 60.8 | X171: 60.8 | Y171: 60.86 | Z171: 61.96 | AA171: 66.11
A172: 29 - Inspeção ao local para efeitos do cumprimento do artigo 645º do Código Regulamentar e outras não expressamente previstas, no âmbito da Proteção Civil | E172: 11.72 | W172: 10.78 | X172: 10.78 | Y172: 10.79 | Z172: 10.98 | AA172: 11.72
X177: =IF(W177=0," ",IFERROR(IF(W177>0,ROUND(W177+W177*X$55,2)," "),"")) -> 
A184: CAPÍTULO III
A185: CEMITÉRIOS | E185: =AA185 -> 
A187: Secção I
A188: Inumações
A190: 1 - Inumação em covais
A191: a) Sepulturas temporárias | E191: 25.63 | W191: 23.58 | X191: 23.58 | Y191: 23.6 | Z191: 24.02 | AA191: 25.63
A192: b) Sepulturas perpétuas: | E192: 41.04 | W192: 37.74 | X192: 37.74 | Y192: 37.78 | Z192: 38.46 | AA192: 41.04
A193: 2 - Inumação em jazigos particulares - por cada: | E193: 48.73 | W193: 44.82 | X193: 44.82 | Y193: 44.86 | Z193: 45.67 | AA193: 48.73
A194: 3 - Inumação em jazigos municipais e sua ocupação:
A195: 3.1 - Por cada período de um ano ou fracção:
A196: a) catacumbas simples | E196: 41.04 | W196: 37.74 | X196: 37.74 | Y196: 37.78 | Z196: 38.46 | AA196: 41.04
A197: b) catacumbas duplas | E197: 56.43 | W197: 51.9 | X197: =IF(W197=0," ",IFERROR(IF(W197>0,ROUND(W197+W197*X$55,2)," "),"")) -> 51.9 | Y197: 51.95 | Z197: 52.89 | AA197: 56.43
A199: Secção II
A200: Exumações e Trasladações | G200: =IF(F200=""," ",ROUND(E200*F200,2)) -> 
A202: 1 - Por cada ossada e trasladação dentro do mesmo cemitério | E202: 74.4 | W202: 68.43 | X202: 68.43 | Y202: 68.5 | Z202: 69.73 | AA202: 74.4
A204: Secção III
A205: Ocupação de sepulturas e ossários municipais
A207: 1 - Por cada, por ano ou fracção | E207: 13.32 | W207: 12.25 | X207: 12.25 | Y207: 12.26 | Z207: 12.48 | AA207: 13.32
A208: 1.1 - Com carácter perpétuo | E208: 308.15 | W208: 283.41 | X208: 283.41 | Y208: 283.69 | Z208: 288.8 | AA208: 308.15
A210: Secção IV
A211: Concessão de terrenos
A213: 1 - Para sepultura perpétua | E213: 1231.14 | W213: 1132.3 | X213: 1132.3 | Y213: 1133.43 | Z213: 1153.83 | AA213: 1231.14
A214: 2 - Para jazigos
A215: a) Pelos primeiros 3 m2 | E215: 1872.77 | W215: 1722.42 | X215: 1722.42 | Y215: 1724.14 | Z215: 1755.17 | AA215: 1872.77
A216: b) Cada m2 a mais | E216: 794.82 | W216: 731.01 | X216: 731.01 | Y216: 731.74 | Z216: 744.91 | AA216: 794.82
A217: c) Aos valores previstos nas alíneas anteriores, havendo jazigo, acresce | E217: 10537.25 | W217: 9691.28 | X217: =IF(W217=0," ",IFERROR(IF(W217>0,ROUND(W217+W217*X$55,2)," "),"")) -> 9691.28 | Y217: 9700.97 | Z217: 9875.59 | AA217: 10537.25
A219: Secção V
A220: Obras em jazigos e sepulturas
A222: 1 - Obras em jazigos e sepulturas:
A223: 1.1 - Construção, reconstrução, ampliação ou modificação de jazigos particulares
A224: a) Por título | E224: 136.48 | W224: 125.52 | X224: 125.52 | Y224: 125.65 | Z224: 127.91 | AA224: 136.48
A225: b) Em função do prazo,
A226: b1) pelos primeiros quinze dias | E226: 5.8 | W226: 5.33 | X226: 5.33 | Y226: 5.34 | Z226: 5.44 | AA226: 5.8
A227: b2) Por cada dia a mais | E227: 4 | W227: 3.68 | X227: 3.68 | Y227: 3.68 | Z227: 3.75 | AA227: 4
A228: c) Por cada metro quadrado de area de construção | E228: 2.97 | W228: 2.73 | X228: 2.73 | Y228: 2.73 | Z228: 2.78 | AA228: 2.97
A229: 1.2 - Revestimento em cantaria ou mármore de sepulturas perpétuas - por sepultura | E229: 25.63 | W229: 23.58 | X229: 23.58 | Y229: 23.6 | Z229: 24.02 | AA229: 25.63
A230: 1.3 - Revestimento de sepulturas temporárias a mármore ou granito - por sepultura | E230: 16.4 | W230: 15.08 | X230: 15.08 | Y230: 15.1 | Z230: 15.37 | AA230: 16.4
A232: Secção VI
A233: Serviços diversos
A235: 1 - Averbamento em título de jazigo ou sepultura perpétua - cada | E235: 72.79 | W235: 66.94 | X235: 66.94 | Y235: 67.01 | Z235: 68.22 | AA235: 72.79
A236: 2 - Construção de bordadura e sua conservação, durante o período de inumação
A237: a) Em argamassa de cimento | E237: 37.36 | W237: 34.36 | X237: =IF(W237=0," ",IFERROR(IF(W237>0,ROUND(W237+W237*X$55,2)," "),"")) -> 34.36 | Y237: 34.39 | Z237: 35.01 | AA237: 37.36
A238: b) Em cantaria ou mármore | E238: 72.79 | W238: 66.94 | X238: 66.94 | Y238: 67.01 | Z238: 68.22 | AA238: 72.79
A239: 3 - Colocação da cruz | E239: 16.33 | W239: 15.01 | X239: 15.01 | Y239: 15.03 | Z239: 15.3 | AA239: 16.33
A240: 4 - Utilização da capela, incluindo seus materiais
A241: a) Pelo período de vinte e quatro horas ou fracção | E241: 16.33 | W241: 15.01 | X241: 15.01 | Y241: 15.03 | Z241: 15.3 | AA241: 16.33
A242: 5 - Soldagem de caixões
A243: a) Dentro de horas de expediente | E243: 18.37 | W243: 16.9 | X243: 16.9 | Y243: 16.92 | Z243: 17.22 | AA243: 18.37
A244: b) Fora de horas de expediente | E244: 34.28 | W244: 31.53 | X244: 31.53 | Y244: 31.56 | Z244: 32.13 | AA244: 34.28
A245: 6 - Depósito transitório de caixões:
A246: a) Pelo período de vinte e quatro horas ou fracção . | E246: 7.6 | W246: 6.98 | X246: 6.98 | Y246: 6.99 | Z246: 7.12 | AA246: 7.6
A247: b) Pelo período de 15 dias ou fracção, para efeitos de obras. | E247: 16.33 | W247: 15.01 | X247: 15.01 | Y247: 15.03 | Z247: 15.3 | AA247: 16.33
A248: 7 - Remoção de caixões e ossadas | E248: 16.33 | W248: 15.01 | X248: 15.01 | Y248: 15.03 | Z248: 15.3 | AA248: 16.33
A249: 8 - Reserva anual de sepultura | E249: =AA249 -> 37.36 | W249: 34.36 | X249: 34.36 | Y249: 34.39 | Z249: 35.01 | AA249: 37.36
A250: 9 - Reabertura do cemitério fora das horas regulamentares | E250: 72.79 | W250: 66.94 | X250: 66.94 | Y250: 67.01 | Z250: 68.22 | AA250: 72.79
X257: =IF(W257=0," ",IFERROR(IF(W257>0,ROUND(W257+W257*X$55,2)," "),"")) -> 
G264: =IF(F264=""," ",ROUND(E264*F264,2)) -> 
X277: =IF(W277=0," ",IFERROR(IF(W277>0,ROUND(W277+W277*X$55,2)," "),"")) -> 
A292: CAPÍTULO IV
A293: Licenciamentos e autorizações diversas
A295: Secção I
A296: Licenciamento de instalações de armazenamento de produtos de petróleo e de postos de abastecimento de combustíveis
X297: =IF(W297=0," ",IFERROR(IF(W297>0,ROUND(W297+W297*X$55,2)," "),"")) -> 
A298: 1 – Apreciação dos pedidos de aprovação dos projectos de construção e alteração
A299: a) instalações da classe A1 | E299: 198.63 | G299: =IF(F299=""," ",ROUND(E299*F299,2)) ->  | W299: 182.69 | X299: 182.69 | Y299: 182.87 | Z299: 186.16 | AA299: 198.63
A300: b instalações da classe A2 | E300: 249.97 | G300: =IF(F300=""," ",ROUND(E300*F300,2)) ->  | W300: 229.9 | X300: 229.9 | Y300: 230.13 | Z300: 234.27 | AA300: 249.97
A301: c) instalações da classe A3 | E301: 301.3 | W301: 277.11 | X301: 277.11 | Y301: 277.39 | Z301: 282.38 | AA301: 301.3
A302: d) outras instalações não expressamente definidas | E302: 352.62 | W302: 324.32 | X302: 324.32 | Y302: 324.64 | Z302: 330.48 | AA302: 352.62
A303: 2 - Reapreciação dos projectos: 50% do valor da taxa devida pela apreciação inicial correpondente
A304: 3 - Emissão de segunda via de certificado de aprovação de projecto ou de inspecção | E304: 12.53 | W304: 11.52 | X304: 11.52 | Y304: 11.53 | Z304: 11.74 | AA304: 12.53
A305: 4 - Emissão do alvará de licença de exploração | E305: 2228.71 | W305: 2049.78 | X305: 2049.78 | Y305: 2051.83 | Z305: 2088.76 | AA305: 2228.71
A306: 5 - Averbamentos | E306: 352.62 | W306: 324.32 | X306: 324.32 | Y306: 324.64 | Z306: 330.48 | AA306: 352.62
A307: 6 - Renovação do alvará de licença de exploração | E307: 2228.71 | W307: 2049.78 | X307: 2049.78 | Y307: 2051.83 | Z307: 2088.76 | AA307: 2228.71
A309: Secção II
A310: Licenciamento da actividade industrial
A312: 1 - Recepção do registo e verificação da sua conformidade | E312: 164.22 | W312: 151.04 | X312: 151.04 | Y312: 151.19 | Z312: 153.91 | AA312: 164.22
A313: 2 - Apreciação dos pedidos de regularização | E313: =AA313 -> 191.95 | W313: 176.54 | X313: 176.54 | Y313: 176.72 | Z313: 179.9 | AA313: 191.95
A314: 3 - Averbamento de transmissão da licença de exploração | E314: 343.89 | W314: 316.28 | X314: 316.28 | Y314: 316.6 | Z314: 322.3 | AA314: 343.89
A316: Secção III
A317: Intervenção sobre o exercício de actividades diversas | X317: =IF(W317=0," ",IFERROR(IF(W317>0,ROUND(W317+W317*X$55,2)," "),"")) -> 
... 627 more rows

Sheet TMI C1_C2
A1: Simulador - Estimativa dos Encargos Urbanísticos Taxa pela realização, reforço ou manutenção de infra-estruturas: (Artigo III/66.º do Código Regulamentar do Município de Amarante)
A3: O valor da taxa pela realização, reforço e manutenção de infra-estruturas (TMI), a que se refere o artigo III/66.º do Código Regulamentar do Município de Amarante, é calculado segundo a seguinte expressão:
A4: TMI = Ac x V x ∑i x Fm
A5: Ac - Área total de construção prevista ou a servir na operação urbanística, em metros quadrados;
A6: V - Valor médio de construção fixado, por metro quadrado, para efeitos de IMI, e atualizado anualmente por portaria governamental; | I6: 532
A7: i - coeficiente correspondente a cada uma das infraestruturas gerais disponíveis ou a disponibilizar no local da realização da operação urbanística, que toma os valores constantes do quadro seguinte:
A8: A arruamento Público (colocar x) | D8: Pavimentado | H8: 0.3
D9: Não pavimentado, ou quando se torne necessário ao interessado construir ou reforçar acessos viários fora do(s) prédio(s) objeto da operação urbanística e essas vias integrem ou se destinem a integrar o domínio municipal. | H9: 0.2
A10: Às infraestruturas gerais de (colocar x) | D10: Abastecimento de Água | H10: 0.15
D11: Drenagem de Águas Residuais | H11: 0.2
D12: Drenadem de Águas Pluviais | H12: 0.1
D13: Distribuição de Gás | H13: 0.05
D14: Distribuição de Energia Eléctrica | H14: 0.05
D15: Telecomunicações | H15: 0.05
D16: Iluminação Pública | H16: 0.1
I17: =IF($I$5=0," ",SUMIF(I8:I16,"X",H8:H16)) -> 
A18: Fm — fator municipal orientado para a execução da política de ordenamento do território definida nos planos municipais de ordenamento do território e determinado através da fórmula de cálculo seguinte: Fm =W*Y*Z:
A19: W (varia em função da localização da operação urbanistica) (colocar x)
A20: A operação urbanistica se inclui em perimetro urbano | H20: 0.7
A21: A operação urbanistica se localize fora do perimetro urbano | H21: 1
A22: Industrial | H22: 0.5
I23: =IF($I$5=0," ",SUMIF(I20:I22,"X",H20:H22)) -> 
A25: Y (varia conforme a carga que os usos dos edifícios previstos na operação urbanística determinam sobre as infraestruturas) (colocar x)
A26: Y = 1,0 para habitação unifamiliar e ou colectiva, ou quando Ac hab > 80 % Ac | H26: 1
A27: Y = 1,2 para habitação e outros usos, quando Ac hab <= 80 % Ac | H27: 1.2
A28: Y = 1,3 para comércio, serviços, indústria ou armazéns | H28: 1.3
I29: =IF($I$5=0," ",SUMIF(I26:I28,"X",H26:H28)) -> 
A31: Z (é um coeficiente ponderador, compreendido entre 0,008 e 0,012, indexado à dotação inicial do plano plurianual de investimentos do Município para a aquisição de bens de capital, a definir anualmente com a aprovação dos documentos previsionais)
A32: a) Montante inferior a 5 milhões de euros | H32: 0.008
A33: b) Montante compreendido entre 5M€ e 20M€ | H33: 0.01
A34: c) Montante superior a 20M€ | H34: 0.012 | I34: X
I35: =IF($I$6=0," ",IF(I32="X",H32,IF(I33="X",H33,IF(I34="x",H34,"")))) -> 0.012
A37: O valor da TMI a cobrar é de | I37: =IF($I$5=0," ",ROUND($I$5*$I$6*$I$17*$I$23*$I$29*$I$35,2)) -> 
A39: Compensação C = C1 + C2 (Artigo III/41.º do Código Regulamentar do Município de Amarante)
A41: C1 — é o valor da compensação devida ao Município quando não se justifique a cedência, no todo ou em parte, de áreas destinadas a espaços verdes e de utilização coletiva ou à instalação de equipamentos públicos no local;
A43: Af (m²) - Área de cedência em falta
A45: Fp - fator de ponderação do valor relativo do terreno, em função do índice de infraestruturação disponível no local da realização da operação urbanística, compreendido entre 0,15 e 0,20:
A46: Índice de infraestruturação disponível no local da operação urbanística | I46: (colocar x)
A47: Arruamento Público | D47: Pavimentado em calçada, betuminoso ou equivalente | H47: 0.0095
D48: Com passeio do lado da parcela | H48: 0.0035
A49: As Infra-estrururas gerais de: | D49: Abastecimento de Aguas | H49: 0.007
D50: Drenagem de Aguas Residuais | H50: 0.009
D51: Drenadem de Aguas Pluviais | H51: 0.003
D52: Distribuição de Gás | H52: 0.006
D53: Distribuição de Energia Eléctrica | H53: 0.006
D54: Telecomunicações | H54: 0.006
A55: Total de i | I55: =IF($I$43=0," ",SUMIF(I47:I54,"X",H47:H54)) -> 
A56: Fp = 0,15 + ∑ i | I56: =IF($I$55=" "," ",0.15+$I$55) -> 
A57: Ac (m²) - área total de construção admissível no local da operação urbanística, de acordo com o previsto em plano municipal de ordenamento do território, em metros quadrados;
A58: V - valor médio de construção fixado, por metro quadrado, para efeitos de IMI e atualizado anualmente por portaria governamental; | I58: =I6 -> 532
A59: St (m²) - Superfície total do prédio objecto da operação urbanística
A60: Valor do terreno obtido por m² | I60: =IF($I$43=0," ",(I56*I57*I58)/I59) -> 
A61: O valor da compensação C1 a cobrar é de | I61: =IF(I43=0,0,ROUND(I43*I60,2)) -> 0
A63: C2 — é o valor da compensação devida ao Município quando o prédio já se encontre servido pelas infraestruturas referidas na alínea h) do artigo 2.º do Decreto -Lei n.º 555/99, de 16 de dezembro, na sua redação atual.
A66: C2 = V * (F1 + F2)
A67: V - Valor médio de construção fixado, por metro quadrado, para efeitos de IMI, e atualizado anualmente por portaria governamental; | I67: =I6 -> 532
A68: F1 = 0,035 * A
A69: A - É a superfície determinada pelo comprimento(L) das linhas de confrontação do(s) arruamento(s) existente(s) com os lotes, multiplicado pelas suas distâncias(D) ao eixo do(s) dito(s) arruamento(s). A=L*D | H69: Valor de L
H70: Valor de D
I71: =IFERROR(I69*I70," - ") -> 0
A72: F1 obtido | I72: =IFERROR(0.035*$I$71," - ") -> 0
A73: F2 = 0,062 * (L/2) * (R1 + R2 + R3)
A74: L - é o comprimento das linhas de confrontação do(s) arruamento(s) devidamente infraestruturado(s), no todo ou em parte, com os lotes cujas edificações estabeleçam serventias ou acessibilidades diretas para o(s) dito(s) arruamento(s), em metros; | I74: =IF(I69="","",I69) -> 
A77: Determinação de R1, R2 e R3:
A78: No(s) arruamento(s) acima referido(s): | I78: (colocar x)
A79: Existe rede pública de abastecimento de água | G79: R1 = | H79: 1
A80: Não existe rede pública de abastecimento de água | G80: R1 = | H80: 0
A81: Existe rede pública de drenagem de águas residuais | G81: R2 = | H81: 1.4
A82: Não existe rede pública de drenagem de águas residuais | G82: R2 = | H82: 0
A83: Existe rede pública de drenagem de águas pluviais | G83: R3 = | H83: 1.8
A84: Não existe rede pública de drenagem de águas pluviais | G84: R3 = | H84: 0
A85: F2 obtido | I85: =IFERROR(0.062*($I$69/2)*SUMIF($I$79:$I$84,"x",$H$79:$H$84)," - ") -> 0
A86: O valor da compensação C2 a cobrar é de | I86: =IFERROR(ROUND($I$67*($I$72+$I$85),2)," - ") -> 0
AC87: =IFERROR(IF(AB87>0,ROUND(AB87*#REF!,2)," "),"") ->  | AE87: =IFERROR(ROUND(AC87,2),"") ->  | AG87: =IF(AC87<>" ",IF(AC87=AE87,"","XXXX"),"") -> 
AC88: =IFERROR(IF(AB88>0,ROUND(AB88*#REF!,2)," "),"") ->  | AE88: =IFERROR(ROUND(AC88,2),"") ->  | AG88: =IF(AC88<>" ",IF(AC88=AE88,"","XXXX"),"") -> 
AC89: =IFERROR(IF(AB89>0,ROUND(AB89*#REF!,2)," "),"") -> 
AC90: =IFERROR(IF(AB90>0,ROUND(AB90*#REF!,2)," "),"") -> 
AC91: =IFERROR(IF(AB91>0,ROUND(AB91*#REF!,2)," "),"") -> 
AC92: =IFERROR(IF(AB92>0,ROUND(AB92*#REF!,2)," "),"") -> 
AC93: =IFERROR(IF(AB93>0,ROUND(AB93*#REF!,2)," "),"") -> 
AC94: =IFERROR(IF(AB94>0,ROUND(AB94*#REF!,2)," "),"") -> 
AC95: =IFERROR(IF(AB95>0,ROUND(AB95*#REF!,2)," "),"") -> 
AC96: =IFERROR(IF(AB96>0,ROUND(AB96*#REF!,2)," "),"") -> 
AC97: =IFERROR(IF(AB97>0,ROUND(AB97*#REF!,2)," "),"") -> 
AC98: =IFERROR(IF(AB98>0,ROUND(AB98*#REF!,2)," "),"") -> 
AC99: =IFERROR(IF(AB99>0,ROUND(AB99*#REF!,2)," "),"") -> 
AC100: =IFERROR(IF(AB100>0,ROUND(AB100*#REF!,2)," "),"") -> 
AC101: =IFERROR(IF(AB101>0,ROUND(AB101*#REF!,2)," "),"") -> 
AC102: =IFERROR(IF(AB102>0,ROUND(AB102*#REF!,2)," "),"") -> 
AC103: =IFERROR(IF(AB103>0,ROUND(AB103*#REF!,2)," "),"") -> 
AC104: =IFERROR(IF(AB104>0,ROUND(AB104*#REF!,2)," "),"") -> 
AC105: =IFERROR(IF(AB105>0,ROUND(AB105*#REF!,2)," "),"") -> 
AC106: =IFERROR(IF(AB106>0,ROUND(AB106*#REF!,2)," "),"") -> 
AC107: =IFERROR(IF(AB107>0,ROUND(AB107*#REF!,2)," "),"") -> 
AC108: =IFERROR(IF(AB108>0,ROUND(AB108*#REF!,2)," "),"") -> 
AC109: =IFERROR(IF(AB109>0,ROUND(AB109*#REF!,2)," "),"") -> 
AC110: =IFERROR(IF(AB110>0,ROUND(AB110*#REF!,2)," "),"") -> 
AC111: =IFERROR(IF(AB111>0,ROUND(AB111*#REF!,2)," "),"") -> 
AC112: =IFERROR(IF(AB112>0,ROUND(AB112*#REF!,2)," "),"") -> 
AC113: =IFERROR(IF(AB113>0,ROUND(AB113*#REF!,2)," "),"") -> 
AC114: =IFERROR(IF(AB114>0,ROUND(AB114*#REF!,2)," "),"") -> 
AC115: =IFERROR(IF(AB115>0,ROUND(AB115*#REF!,2)," "),"") -> 
AC116: =IFERROR(IF(AB116>0,ROUND(AB116*#REF!,2)," "),"") -> 
AC117: =IFERROR(IF(AB117>0,ROUND(AB117*#REF!,2)," "),"") -> 
AC118: =IFERROR(IF(AB118>0,ROUND(AB118*#REF!,2)," "),"") -> 
AC119: =IFERROR(IF(AB119>0,ROUND(AB119*#REF!,2)," "),"") -> 
AC120: =IFERROR(IF(AB120>0,ROUND(AB120*#REF!,2)," "),"") -> 
AC121: =IFERROR(IF(AB121>0,ROUND(AB121*#REF!,2)," "),"") -> 
AC122: =IFERROR(IF(AB122>0,ROUND(AB122*#REF!,2)," "),"") -> 
AC123: =IFERROR(IF(AB123>0,ROUND(AB123*#REF!,2)," "),"") -> 
AC124: =IFERROR(IF(AB124>0,ROUND(AB124*#REF!,2)," "),"") -> 
AC125: =IFERROR(IF(AA125>0,ROUND(AA125*#REF!,2)," "),"") -> 
AC126: =IFERROR(IF(AA126>0,ROUND(AA126*#REF!,2)," "),"") -> 
AC127: =IFERROR(IF(AA127>0,ROUND(AA127*#REF!,2)," "),"") -> 
AC128: =IFERROR(IF(AA128>0,ROUND(AA128*#REF!,2)," "),"") -> 
AC129: =IFERROR(IF(AA129>0,ROUND(AA129*#REF!,2)," "),"") -> 
AC130: =IFERROR(IF(AA130>0,ROUND(AA130*#REF!,2)," "),"") -> 
AC131: =IFERROR(IF(AA131>0,ROUND(AA131*#REF!,2)," "),"") -> 
AC132: =IFERROR(IF(AA132>0,ROUND(AA132*#REF!,2)," "),"") -> 
AC133: =IFERROR(IF(AA133>0,ROUND(AA133*#REF!,2)," "),"") -> 
AC134: =IFERROR(IF(AA134>0,ROUND(AA134*#REF!,2)," "),"") -> 
AC135: =IFERROR(IF(AA135>0,ROUND(AA135*#REF!,2)," "),"") -> 
AC136: =IFERROR(IF(AA136>0,ROUND(AA136*#REF!,2)," "),"") -> 
AC137: =IFERROR(IF(AA137>0,ROUND(AA137*#REF!,2)," "),"") -> 
AC138: =IFERROR(IF(AA138>0,ROUND(AA138*#REF!,2)," "),"") -> 
AC139: =IFERROR(IF(AA139>0,ROUND(AA139*#REF!,2)," "),"") -> 
AC140: =IFERROR(IF(AA140>0,ROUND(AA140*#REF!,2)," "),"") -> 
AC141: =IFERROR(IF(AA141>0,ROUND(AA141*#REF!,2)," "),"") -> 
AC142: =IFERROR(IF(AA142>0,ROUND(AA142*#REF!,2)," "),"") -> 
AC143: =IFERROR(IF(AA143>0,ROUND(AA143*#REF!,2)," "),"") -> 
AC144: =IFERROR(IF(AA144>0,ROUND(AA144*#REF!,2)," "),"") -> 
AC145: =IFERROR(IF(AA145>0,ROUND(AA145*#REF!,2)," "),"") -> 
AC146: =IFERROR(IF(AA146>0,ROUND(AA146*#REF!,2)," "),"") -> 
AC147: =IFERROR(IF(AA147>0,ROUND(AA147*#REF!,2)," "),"") -> 
AC148: =IFERROR(IF(AA148>0,ROUND(AA148*#REF!,2)," "),"") -> 
AC149: =IFERROR(IF(AA149>0,ROUND(AA149*#REF!,2)," "),"") -> 
AC150: =IFERROR(IF(AA150>0,ROUND(AA150*#REF!,2)," "),"") ->  | AE150: =IFERROR(ROUND(AC150,2),"") -> 
AC151: =IFERROR(IF(AA151>0,ROUND(AA151*#REF!,2)," "),"") -> 
AC152: =IFERROR(IF(AA152>0,ROUND(AA152*#REF!,2)," "),"") -> 
AC153: =IFERROR(IF(AA153>0,ROUND(AA153*#REF!,2)," "),"") -> 
AC154: =IFERROR(IF(AA154>0,ROUND(AA154*#REF!,2)," "),"") -> 
AC155: =IFERROR(IF(AA155>0,AA155*#REF!," "),"") -> 
AC156: =IFERROR(IF(AA156>0,AA156*#REF!," "),"") -> 
AC157: =IFERROR(IF(AA157>0,AA157*#REF!," "),"") -> 
AC158: =IFERROR(IF(AA158>0,AA158*#REF!," "),"") -> 
AC159: =IFERROR(IF(AA159>0,AA159*#REF!," "),"") -> 
AC160: =IFERROR(IF(AA160>0,AA160*#REF!," "),"") -> 
AC161: =IFERROR(IF(AA161>0,AA161*#REF!," "),"") -> 
AC162: =IFERROR(IF(AA162>0,AA162*#REF!," "),"") -> 
AC163: =IFERROR(IF(AA163>0,AA163*#REF!," "),"") -> 
AC164: =IFERROR(IF(AA164>0,AA164*#REF!," "),"") -> 
AC165: =IFERROR(IF(AA165>0,AA165*#REF!," "),"") -> 
AC166: =IFERROR(IF(AA166>0,AA166*#REF!," "),"") -> 
AC167: =IFERROR(IF(AA167>0,AA167*#REF!," "),"") -> 
AC168: =IFERROR(IF(AA168>0,AA168*#REF!," "),"") -> 
AC169: =IFERROR(IF(AA169>0,AA169*#REF!," "),"") -> 
AE170: 0
AE171: 0
AE172: 0
AE173: 0
AE174: 0
AE175: 0
AE176: 0
AE177: 0
AE178: 0
AE179: 0
AE180: 0
AE181: 0
AE182: 0
AE183: 0
AE184: 0
AE185: 0
AE186: 0
AE187: 0
AE188: 0
AE189: 0
AE190: 0
AE191: 0
AE192: 0
AE193: 0
AE194: 0
AE195: 0
AE196: 0
AE197: 0
AE198: 0
AE199: 0
AE200: 0
AE201: 0
AE202: 0
AE203: 0
AE204: 0
AE205: 0
AE206: 0
AE207: 0
AE208: 0
AE209: 0
AE210: 0
AE211: 0
AE212: 0
AE213: 0
... 23 more rows
